fUSD/lending_fUSD_20241127
["ID","MTS","AMOUNT","RATE_DAILY","PERIOD"]
[343600923,1732744266311,-1009907.32807745,0.0001,2]
[343600924,1732744266610,-4831.0934472,0.0001,2]
[343600925,1732744266637,-806.45329,9.999e-05,2]
[343600926,1732744266651,-1050.89671,9.999e-05,2]
[343600927,1732744266660,-14949.54074213,0.0001,2]
[343600943,1732744966584,150.0,6.973e-05,2]
[343600944,1732744966605,23.18,6.973e-05,2]
[343600945,1732744967956,-276.63447805,8.219e-05,2]
[343600946,1732744968388,-150.0,8.219e-05,2]
[343600947,1732744969005,-150.0,8.219e-05,2]
[343600948,1732744971475,-150.0,8.219e-05,2]
[343600954,1732745139756,-167.1968119,0.00012,10]
[343600955,1732745159320,-150.0,0.00011499,5]
[343600956,1732745159340,-150.0,0.00011499,5]
[343600957,1732745159360,-239.47224553,0.00011499,5]
[343600958,1732745182227,-1000.0,0.00013698,10]
[343600959,1732745182249,-1000.0,0.00013698,10]
[343600960,1732745182272,-1000.0,0.00013698,10]
[343600961,1732745182294,-1000.0,0.00013698,10]
[343600962,1732745182320,-1000.0,0.00013698,10]
[343600963,1732745182342,-1000.0,0.00013698,10]
[343600964,1732745182364,-830.33094257,0.00013698,10]
[343601074,1732745432364,-170.33,8.219e-05,2]
[343601075,1732745432374,-2172.52,8.219e-05,2]
[343601076,1732745432384,-371.97,8.584e-05,2]
[343601077,1732745432393,-912.4478463,8.584e-05,2]
[343601078,1732745432405,-151.61663114,8.584e-05,2]
[343601079,1732745432415,-300.0,8.587e-05,2]
[343601080,1732745432424,-418.77,8.611e-05,2]
[343601081,1732745432434,-250.0,8.611e-05,2]
[343601082,1732745432443,-200.0,8.613e-05,2]
[343601083,1732745432453,-775.41,8.632e-05,2]
[343601084,1732745432462,-1980.21,8.652e-05,2]
[343601085,1732745432471,-592.74,8.66e-05,2]
[343601086,1732745432480,-3342.72,8.675e-05,2]
[343601087,1732745432489,-1243.72,8.7e-05,2]
[343601088,1732745432499,-2607.4,8.71e-05,2]
[343601089,1732745432508,-1790.42308941,8.714e-05,2]
[343601090,1732745432519,-368.4,8.714e-05,2]
[343601091,1732745432546,-31.48691059,8.714e-05,2]
[343601092,1732745432556,-3132.78,8.74e-05,2]
[343601093,1732745432565,-164.32,8.773e-05,2]
[343601094,1732745432576,-250.0,8.813e-05,2]
[343601095,1732745432587,-500.0,8.838e-05,2]
[343601096,1732745432597,-1000.0,8.88e-05,2]
[343601097,1732745432610,-150.0,8.898e-05,2]
[343601098,1732745432620,-23900.0,8.899e-05,2]
[343601099,1732745432629,-170.33,9.358e-05,2]
[343601100,1732745432638,-6438.0,9.507e-05,2]
[343601101,1732745432648,-157.24,9.67e-05,2]
[343601102,1732745432657,-587.59,9.67e-05,2]
[343601103,1732745432666,-150.99,9.67e-05,2]
[343601104,1732745432676,-999.99,9.67e-05,2]
[343601105,1732745432685,-150.99,9.67e-05,2]
[343601106,1732745432694,-1106.02,9.67e-05,2]
[343601107,1732745432703,-299.99,9.67e-05,2]
[343601108,1732745432713,-418.77,9.687e-05,2]
[343601109,1732745432722,-500.0,9.699e-05,2]
[343601110,1732745432731,-1500.0,9.741e-05,2]
[343601111,1732745432740,-150.0,9.745e-05,2]
[343601112,1732745432750,-150.0,9.749e-05,2]
[343601113,1732745432759,-1500.0,9.763e-05,2]
[343601114,1732745432768,-255.0,9.787e-05,2]
[343601115,1732745432778,-496.006782,9.8e-05,2]
[343601116,1732745432787,-4159.16310853,9.8e-05,2]
[343601117,1732745432796,-13688.0,9.822e-05,2]
[343601119,1732745432806,-5953.0,9.822e-05,2]
[343601121,1732745432816,-184.084,9.822e-05,2]
[343601123,1732745432827,-1164.0,9.822e-05,2]
[343601125,1732745432836,-1500.0,9.844e-05,2]
[343601127,1732745432845,-316.66095455,9.848e-05,2]
[343601129,1732745432854,-150.0,9.852e-05,2]
[343601131,1732745432864,-150.0,9.853e-05,2]
[343601133,1732745432873,-150.0,9.854e-05,2]
[343601135,1732745432882,-164.32,9.869e-05,2]
[343601137,1732745432891,-150.0,9.871e-05,2]
[343601138,1732745432900,-150.0,9.887e-05,2]
[343601139,1732745432910,-3476.8943,9.889e-05,2]
[343601141,1732745432919,-3094.53,9.889e-05,2]
[343601143,1732745432928,-2500.0,9.889e-05,2]
[343601145,1732745432937,-1500.0,9.891e-05,2]
[343601147,1732745432946,-2500.0,9.894e-05,2]
[343601149,1732745432955,-4682.3603,9.898e-05,2]
[343601151,1732745432964,-150.0,9.899e-05,2]
[343601153,1732745432973,-1055.49809687,9.9e-05,2]
[343601155,1732745432982,-161.198535,9.9e-05,2]
[343601157,1732745432992,-1500.0,9.902e-05,2]
[343601159,1732745433001,-150.0,9.922e-05,2]
[343601161,1732745433010,-150.0,9.936e-05,2]
[343601163,1732745433018,-150.0,9.947e-05,2]
[343601165,1732745433028,-1500.0,9.958e-05,2]
[343601167,1732745433037,-1233.05833998,9.971e-05,2]
[343601169,1732745433047,-150.0,9.972e-05,2]
[343601171,1732745433056,-1233.05833998,9.973e-05,2]
[343601172,1732745433065,-12229.0,9.973e-05,2]
[343601173,1732745433075,-8601.0,9.973e-05,2]
[343601174,1732745433084,-500.0,9.973e-05,2]
[343601175,1732745433094,-500.0,9.973e-05,2]
[343601176,1732745433104,-159.31081553,9.973e-05,2]
[343601177,1732745433114,-500.0,9.973e-05,2]
[343601178,1732745433124,-160.90136305,9.973e-05,2]
[343601179,1732745433133,-558.07771423,9.973e-05,2]
[343601180,1732745433143,-500.0,9.973e-05,2]
[343601181,1732745433153,-191.2257188,9.973e-05,2]
[343601182,1732745433162,-1233.05833998,9.973e-05,2]
[343601183,1732745433172,-1233.05833998,9.974e-05,2]
[343601184,1732745433182,-500.0,9.989e-05,2]
[343601185,1732745433192,-625.1,9.989e-05,2]
[343601186,1732745433202,-500.0,9.989e-05,2]
[343601187,1732745433211,-547.81,9.989e-05,2]
[343601188,1732745433220,-579.33,9.989e-05,2]
[343601189,1732745433229,-506.40811404,9.989e-05,2]
[343601190,1732745433239,-500.0,9.989e-05,2]
[343601191,1732745433248,-500.0,9.989e-05,2]
[343601192,1732745433257,-500.0,9.989e-05,2]
[343601193,1732745433267,-474.71164888,9.989e-05,2]
[343601194,1732745433277,-537.34,9.989e-05,2]
[343601195,1732745433287,-500.0,9.989e-05,2]
[343601196,1732745433296,-500.0,9.989e-05,2]
[343601197,1732745433306,-500.0,9.989e-05,2]
[343601198,1732745433316,-500.0,9.989e-05,2]
[343601199,1732745433329,-500.0,9.989e-05,2]
[343601200,1732745433339,-500.0,9.989e-05,2]
[343601201,1732745433349,-500.0,9.989e-05,2]
[343601202,1732745433359,-580.91,9.989e-05,2]
[343601203,1732745433369,-500.0,9.989e-05,2]
[343601204,1732745433378,-500.0,9.989e-05,2]
[343601205,1732745433388,-500.0,9.989e-05,2]
[343601206,1732745433397,-500.0,9.989e-05,2]
[343601207,1732745433406,-500.0,9.989e-05,2]
[343601208,1732745433415,-500.0,9.989e-05,2]
[343601209,1732745433425,-500.0,9.989e-05,2]
[343601210,1732745433434,-500.0,9.989e-05,2]
[343601211,1732745433443,-500.0,9.989e-05,2]
[343601212,1732745433453,-500.0,9.989e-05,2]
[343601213,1732745433463,-500.0,9.989e-05,2]
[343601214,1732745433473,-500.0,9.989e-05,2]
[343601215,1732745433483,-500.0,9.989e-05,2]
[343601216,1732745433493,-500.0,9.989e-05,2]
[343601217,1732745433503,-500.0,9.989e-05,2]
[343601218,1732745433512,-500.0,9.989e-05,2]
[343601219,1732745433521,-500.0,9.989e-05,2]
[343601220,1732745433531,-610.7,9.989e-05,2]
[343601221,1732745433541,-552.48,9.989e-05,2]
[343601222,1732745433551,-500.0,9.989e-05,2]
[343601223,1732745433560,-500.0,9.989e-05,2]
[343601224,1732745433572,-500.0,9.989e-05,2]
[343601225,1732745433582,-500.0,9.989e-05,2]
[343601226,1732745433592,-560.5,9.989e-05,2]
[343601227,1732745433605,-500.0,9.989e-05,2]
[343601228,1732745433615,-500.0,9.989e-05,2]
[343601229,1732745433624,-500.0,9.989e-05,2]
[343601230,1732745433634,-500.0,9.989e-05,2]
[343601231,1732745433645,-500.0,9.989e-05,2]
[343601232,1732745433655,-500.0,9.989e-05,2]
[343601233,1732745433664,-173.09,9.989e-05,2]
[343601234,1732745433674,-500.0,9.989e-05,2]
[343601235,1732745433684,-500.0,9.989e-05,2]
[343601236,1732745433694,-500.0,9.989e-05,2]
[343601237,1732745433704,-500.0,9.989e-05,2]
[343601238,1732745433916,-500.0,9.989e-05,2]
[343601239,1732745433933,-500.0,9.989e-05,2]
[343601240,1732745433942,-500.0,9.989e-05,2]
[343601241,1732745433953,-500.0,9.989e-05,2]
[343601242,1732745433963,-520.25149628,9.989e-05,2]
[343601243,1732745433973,-500.0,9.989e-05,2]
[343601244,1732745433983,-156.83796926,9.989e-05,2]
[343601245,1732745433993,-500.0,9.989e-05,2]
[343601246,1732745434003,-500.0,9.989e-05,2]
[343601247,1732745434013,-500.0,9.989e-05,2]
[343601248,1732745434022,-500.0,9.989e-05,2]
[343601249,1732745434032,-502.16,9.989e-05,2]
[343601250,1732745434043,-542.81414463,9.989e-05,2]
[343601251,1732745434053,-500.0,9.989e-05,2]
[343601252,1732745434063,-500.0,9.989e-05,2]
[343601253,1732745434075,-500.0,9.989e-05,2]
[343601254,1732745434085,-500.0,9.989e-05,2]
[343601255,1732745434095,-500.0,9.989e-05,2]
[343601256,1732745434104,-500.0,9.989e-05,2]
[343601257,1732745434115,-500.0,9.989e-05,2]
[343601258,1732745434126,-500.0,9.989e-05,2]
[343601259,1732745434135,-500.0,9.989e-05,2]
[343601260,1732745434145,-500.0,9.989e-05,2]
[343601261,1732745434154,-500.0,9.989e-05,2]
[343601262,1732745434164,-500.0,9.989e-05,2]
[343601263,1732745434174,-500.0,9.989e-05,2]
[343601264,1732745434183,-500.0,9.989e-05,2]
[343601265,1732745434193,-500.0,9.989e-05,2]
[343601266,1732745434203,-500.0,9.989e-05,2]
[343601267,1732745434212,-500.0,9.989e-05,2]
[343601268,1732745434222,-500.0,9.989e-05,2]
[343601269,1732745434231,-500.0,9.989e-05,2]
[343601270,1732745434240,-500.0,9.989e-05,2]
[343601271,1732745434250,-500.0,9.989e-05,2]
[343601272,1732745434259,-500.0,9.989e-05,2]
[343601273,1732745434268,-500.0,9.989e-05,2]
[343601274,1732745434277,-441.54242041,9.989e-05,2]
[343601275,1732745434287,-500.0,9.989e-05,2]
[343601276,1732745434297,-500.0,9.989e-05,2]
[343601277,1732745434306,-500.0,9.989e-05,2]
[343601278,1732745434315,-500.0,9.989e-05,2]
[343601279,1732745434326,-547.19,9.989e-05,2]
[343601280,1732745434336,-550.52,9.989e-05,2]
[343601281,1732745434346,-500.0,9.989e-05,2]
[343601282,1732745434356,-500.0,9.989e-05,2]
[343601283,1732745434366,-500.0,9.989e-05,2]
[343601284,1732745434375,-500.0,9.989e-05,2]
[343601285,1732745434385,-615.86569414,9.989e-05,2]
[343601286,1732745434396,-500.0,9.989e-05,2]
[343601287,1732745434405,-500.0,9.989e-05,2]
[343601288,1732745434415,-603.36380966,9.989e-05,2]
[343601289,1732745434425,-301.75863716,9.989e-05,2]
[343601290,1732745434435,-500.0,9.989e-05,2]
[343601291,1732745434445,-500.0,9.989e-05,2]
[343601292,1732745434454,-500.0,9.989e-05,2]
[343601293,1732745434464,-500.0,9.989e-05,2]
[343601294,1732745434474,-303.20848106,9.989e-05,2]
[343601295,1732745434484,-500.0,9.989e-05,2]
[343601296,1732745434495,-500.0,9.989e-05,2]
[343601297,1732745434505,-500.0,9.989e-05,2]
[343601298,1732745434515,-500.0,9.989e-05,2]
[343601299,1732745434525,-528.82364703,9.989e-05,2]
[343601300,1732745434535,-500.0,9.989e-05,2]
[343601301,1732745434545,-500.0,9.989e-05,2]
[343601302,1732745434556,-500.0,9.989e-05,2]
[343601303,1732745434565,-500.0,9.989e-05,2]
[343601304,1732745434576,-500.0,9.989e-05,2]
[343601305,1732745434586,-500.0,9.989e-05,2]
[343601306,1732745434597,-500.0,9.989e-05,2]
[343601307,1732745434612,-500.0,9.989e-05,2]
[343601308,1732745434621,-502.82914478,9.989e-05,2]
[343601309,1732745434631,-500.0,9.989e-05,2]
[343601310,1732745434641,-509.23344589,9.989e-05,2]
[343601311,1732745434651,-500.0,9.989e-05,2]
[343601312,1732745434660,-500.0,9.989e-05,2]
[343601313,1732745434669,-505.69,9.989e-05,2]
[343601314,1732745434680,-500.0,9.989e-05,2]
[343601315,1732745434690,-500.0,9.989e-05,2]
[343601316,1732745434700,-500.0,9.989e-05,2]
[343601317,1732745434709,-500.0,9.989e-05,2]
[343601318,1732745434719,-500.0,9.989e-05,2]
[343601319,1732745434728,-500.0,9.989e-05,2]
[343601320,1732745434738,-500.0,9.989e-05,2]
[343601321,1732745434747,-500.0,9.989e-05,2]
[343601322,1732745434757,-500.0,9.989e-05,2]
[343601323,1732745434766,-420.31269081,9.989e-05,2]
[343601324,1732745434776,-500.0,9.989e-05,2]
[343601325,1732745434785,-500.0,9.989e-05,2]
[343601326,1732745434795,-500.0,9.989e-05,2]
[343601327,1732745434806,-500.0,9.989e-05,2]
[343601328,1732745434816,-500.0,9.989e-05,2]
[343601329,1732745434828,-500.0,9.989e-05,2]
[343601330,1732745434838,-500.0,9.989e-05,2]
[343601331,1732745434847,-500.0,9.989e-05,2]
[343601332,1732745434858,-303.78492187,9.989e-05,2]
[343601333,1732745434867,-544.97,9.989e-05,2]
[343601334,1732745434877,-380.04082993,9.989e-05,2]
[343601335,1732745434887,-500.0,9.989e-05,2]
[343601336,1732745434896,-500.0,9.989e-05,2]
[343601337,1732745434906,-384.86076353,9.989e-05,2]
[343601338,1732745434916,-500.0,9.989e-05,2]
[343601339,1732745434926,-12853.7718668,9.99e-05,2]
[343601340,1732745434936,-12853.77186679,9.99e-05,2]
[343601341,1732745434946,-1000.0,9.99e-05,2]
[343601342,1732745434956,-12853.77186679,9.991e-05,2]
[343601343,1732745434965,-12853.77186679,9.993e-05,2]
[343601344,1732745434975,-1233.05833998,9.993e-05,2]
[343601345,1732745434985,-504.32977022,9.993e-05,2]
[343601346,1732745434994,-500.0,9.993e-05,2]
[343601347,1732745435004,-500.0,9.993e-05,2]
[343601348,1732745435013,-500.0,9.993e-05,2]
[343601349,1732745435024,-500.0,9.993e-05,2]
[343601350,1732745435033,-500.0,9.993e-05,2]
[343601351,1732745435043,-500.0,9.993e-05,2]
[343601352,1732745435053,-500.0,9.993e-05,2]
[343601353,1732745435062,-500.0,9.993e-05,2]
[343601354,1732745435072,-500.0,9.993e-05,2]
[343601355,1732745435081,-500.0,9.993e-05,2]
[343601356,1732745435090,-500.0,9.993e-05,2]
[343601357,1732745435099,-500.0,9.993e-05,2]
[343601358,1732745435109,-500.0,9.993e-05,2]
[343601359,1732745435119,-500.0,9.993e-05,2]
[343601360,1732745435129,-500.0,9.993e-05,2]
[343601361,1732745435138,-500.0,9.993e-05,2]
[343601362,1732745435148,-500.0,9.993e-05,2]
[343601363,1732745435158,-500.0,9.993e-05,2]
[343601364,1732745435167,-500.0,9.993e-05,2]
[343601365,1732745435176,-500.0,9.993e-05,2]
[343601366,1732745435186,-500.0,9.993e-05,2]
[343601367,1732745435196,-541.65985565,9.993e-05,2]
[343601368,1732745435206,-500.0,9.993e-05,2]
[343601369,1732745435215,-500.0,9.993e-05,2]
[343601370,1732745435225,-500.0,9.993e-05,2]
[343601371,1732745435235,-500.0,9.993e-05,2]
[343601372,1732745435244,-500.0,9.993e-05,2]
[343601373,1732745435254,-500.0,9.993e-05,2]
[343601374,1732745435264,-12853.77186679,9.994e-05,2]
[343601375,1732745435274,-738.453,9.994e-05,2]
[343601376,1732745435283,-429.71879537,9.994e-05,2]
[343601377,1732745435292,-500.0,9.994e-05,2]
[343601378,1732745435302,-500.0,9.994e-05,2]
[343601379,1732745435312,-500.0,9.994e-05,2]
[343601380,1732745435322,-500.0,9.994e-05,2]
[343601381,1732745435332,-621.66119501,9.994e-05,2]
[343601382,1732745435342,-500.0,9.994e-05,2]
[343601383,1732745435351,-341.85358928,9.994e-05,2]
[343601384,1732745435361,-500.0,9.994e-05,2]
[343601385,1732745435371,-578.83,9.994e-05,2]
[343601386,1732745435381,-500.0,9.994e-05,2]
[343601387,1732745435391,-500.0,9.994e-05,2]
[343601388,1732745435402,-500.0,9.994e-05,2]
[343601389,1732745435412,-500.0,9.994e-05,2]
[343601390,1732745435422,-248.52196128,9.994e-05,2]
[343601391,1732745435432,-500.0,9.994e-05,2]
[343601392,1732745435443,-500.0,9.994e-05,2]
[343601393,1732745435453,-500.0,9.994e-05,2]
[343601394,1732745435462,-488.7233215,9.994e-05,2]
[343601395,1732745435472,-500.0,9.994e-05,2]
[343601396,1732745435482,-500.0,9.994e-05,2]
[343601397,1732745435491,-500.0,9.994e-05,2]
[343601398,1732745435501,-500.0,9.994e-05,2]
[343601399,1732745435511,-500.0,9.994e-05,2]
[343601400,1732745435520,-500.0,9.994e-05,2]
[343601401,1732745435530,-541.47,9.994e-05,2]
[343601402,1732745435539,-500.0,9.994e-05,2]
[343601403,1732745435548,-500.0,9.994e-05,2]
[343601404,1732745435558,-500.0,9.994e-05,2]
[343601405,1732745435567,-500.0,9.994e-05,2]
[343601406,1732745435583,-500.0,9.994e-05,2]
[343601407,1732745435593,-505.84538591,9.994e-05,2]
[343601408,1732745435607,-500.0,9.994e-05,2]
[343601409,1732745435617,-530.23,9.994e-05,2]
[343601410,1732745435626,-500.0,9.994e-05,2]
[343601411,1732745435636,-500.0,9.994e-05,2]
[343601412,1732745435646,-500.0,9.994e-05,2]
[343601413,1732745435656,-500.0,9.994e-05,2]
[343601414,1732745435665,-500.0,9.994e-05,2]
[343601415,1732745435674,-500.0,9.994e-05,2]
[343601416,1732745435685,-500.0,9.994e-05,2]
[343601417,1732745435695,-500.0,9.994e-05,2]
[343601418,1732745435705,-500.0,9.994e-05,2]
[343601419,1732745435715,-500.0,9.994e-05,2]
[343601420,1732745435724,-500.0,9.994e-05,2]
[343601421,1732745435734,-500.0,9.994e-05,2]
[343601422,1732745435744,-500.0,9.994e-05,2]
[343601423,1732745435754,-500.0,9.994e-05,2]
[343601424,1732745435764,-500.0,9.994e-05,2]
[343601425,1732745435773,-500.0,9.994e-05,2]
[343601426,1732745435783,-500.0,9.994e-05,2]
[343601427,1732745435793,-500.0,9.994e-05,2]
[343601428,1732745435803,-500.0,9.994e-05,2]
[343601429,1732745435812,-500.0,9.994e-05,2]
[343601430,1732745435822,-500.0,9.994e-05,2]
[343601431,1732745435831,-500.0,9.994e-05,2]
[343601432,1732745435841,-500.0,9.994e-05,2]
[343601433,1732745435851,-500.0,9.994e-05,2]
[343601434,1732745435861,-500.0,9.994e-05,2]
[343601435,1732745435871,-500.0,9.994e-05,2]
[343601436,1732745435881,-500.0,9.994e-05,2]
[343601437,1732745435890,-500.0,9.994e-05,2]
[343601438,1732745435900,-500.0,9.994e-05,2]
[343601439,1732745435909,-500.0,9.994e-05,2]
[343601440,1732745435919,-500.0,9.994e-05,2]
[343601441,1732745435928,-583.47,9.994e-05,2]
[343601442,1732745435938,-266.39984814,9.994e-05,2]
[343601443,1732745435947,-500.0,9.994e-05,2]
[343601444,1732745435956,-500.0,9.994e-05,2]
[343601445,1732745435966,-500.0,9.994e-05,2]
[343601446,1732745435976,-570.4793354,9.994e-05,2]
[343601447,1732745435985,-500.0,9.994e-05,2]
[343601448,1732745435994,-500.0,9.994e-05,2]
[343601449,1732745436004,-500.0,9.994e-05,2]
[343601450,1732745436014,-500.0,9.994e-05,2]
[343601451,1732745436024,-500.0,9.994e-05,2]
[343601452,1732745436033,-508.41467882,9.994e-05,2]
[343601453,1732745436042,-500.0,9.994e-05,2]
[343601454,1732745436052,-517.83753931,9.994e-05,2]
[343601455,1732745436061,-500.0,9.994e-05,2]
[343601456,1732745436073,-500.0,9.994e-05,2]
[343601457,1732745436083,-500.0,9.994e-05,2]
[343601458,1732745436093,-165.95,9.994e-05,2]
[343601459,1732745436102,-516.03977732,9.994e-05,2]
[343601460,1732745436113,-500.0,9.994e-05,2]
[343601461,1732745436122,-500.0,9.994e-05,2]
[343601462,1732745436131,-500.0,9.994e-05,2]
[343601463,1732745436140,-516.65832336,9.994e-05,2]
[343601464,1732745436150,-500.0,9.994e-05,2]
[343601465,1732745436158,-500.0,9.994e-05,2]
[343601466,1732745436168,-500.0,9.994e-05,2]
[343601467,1732745436177,-538.92,9.994e-05,2]
[343601468,1732745436186,-500.0,9.994e-05,2]
[343601469,1732745436196,-500.0,9.994e-05,2]
[343601470,1732745436206,-500.0,9.994e-05,2]
[343601471,1732745436215,-500.0,9.994e-05,2]
[343601472,1732745436226,-500.0,9.994e-05,2]
[343601473,1732745436235,-500.0,9.994e-05,2]
[343601474,1732745436245,-525.19,9.994e-05,2]
[343601475,1732745436255,-503.95077048,9.994e-05,2]
[343601476,1732745436264,-487.14,9.994e-05,2]
[343601477,1732745436274,-500.0,9.994e-05,2]
[343601478,1732745436284,-500.0,9.994e-05,2]
[343601479,1732745436295,-500.0,9.994e-05,2]
[343601480,1732745436304,-500.0,9.994e-05,2]
[343601481,1732745436315,-500.0,9.994e-05,2]
[343601482,1732745436330,-500.0,9.994e-05,2]
[343601483,1732745436341,-500.0,9.994e-05,2]
[343601484,1732745436351,-500.0,9.994e-05,2]
[343601485,1732745436416,-500.0,9.994e-05,2]
[343601486,1732745436427,-500.0,9.994e-05,2]
[343601487,1732745436436,-500.0,9.994e-05,2]
[343601488,1732745436446,-500.0,9.994e-05,2]
[343601489,1732745436456,-500.0,9.994e-05,2]
[343601490,1732745436466,-500.0,9.994e-05,2]
[343601491,1732745436475,-500.0,9.994e-05,2]
[343601492,1732745436485,-500.0,9.994e-05,2]
[343601493,1732745436495,-500.0,9.994e-05,2]
[343601494,1732745436504,-500.0,9.994e-05,2]
[343601495,1732745436514,-500.0,9.994e-05,2]
[343601496,1732745436524,-500.0,9.994e-05,2]
[343601497,1732745436533,-500.0,9.994e-05,2]
[343601498,1732745436542,-500.0,9.994e-05,2]
[343601499,1732745436551,-500.0,9.994e-05,2]
[343601500,1732745436561,-500.0,9.994e-05,2]
[343601501,1732745436571,-500.0,9.994e-05,2]
[343601502,1732745436584,-500.0,9.994e-05,2]
[343601503,1732745436594,-385.6566332,9.994e-05,2]
[343601504,1732745436608,-500.0,9.994e-05,2]
[343601505,1732745436617,-500.0,9.994e-05,2]
[343601506,1732745436627,-500.0,9.994e-05,2]
[343601507,1732745436639,-500.0,9.994e-05,2]
[343601508,1732745436650,-605.17,9.994e-05,2]
[343601509,1732745436661,-500.0,9.994e-05,2]
[343601510,1732745436670,-500.0,9.994e-05,2]
[343601511,1732745436682,-500.0,9.994e-05,2]
[343601512,1732745436691,-619.87251312,9.994e-05,2]
[343601513,1732745436701,-193.3083687,9.994e-05,2]
[343601514,1732745436711,-500.0,9.994e-05,2]
[343601515,1732745436722,-500.0,9.994e-05,2]
[343601516,1732745436731,-1111.46,9.994e-05,2]
[343601517,1732745436741,-500.0,9.994e-05,2]
[343601518,1732745436750,-500.0,9.994e-05,2]
[343601519,1732745436759,-500.0,9.994e-05,2]
[343601520,1732745436769,-500.0,9.994e-05,2]
[343601521,1732745436778,-500.0,9.994e-05,2]
[343601522,1732745436787,-500.0,9.994e-05,2]
[343601523,1732745436797,-500.0,9.994e-05,2]
[343601524,1732745436806,-500.0,9.994e-05,2]
[343601525,1732745436816,-1008.64,9.994e-05,2]
[343601526,1732745436828,-500.0,9.994e-05,2]
[343601527,1732745436837,-500.0,9.994e-05,2]
[343601528,1732745436847,-500.0,9.994e-05,2]
[343601529,1732745436856,-500.0,9.994e-05,2]
[343601530,1732745436865,-500.0,9.994e-05,2]
[343601531,1732745436874,-500.0,9.994e-05,2]
[343601532,1732745436885,-500.0,9.994e-05,2]
[343601533,1732745436894,-500.0,9.994e-05,2]
[343601534,1732745436903,-500.0,9.994e-05,2]
[343601535,1732745436914,-500.0,9.994e-05,2]
[343601536,1732745436923,-500.0,9.994e-05,2]
[343601537,1732745436933,-476.59,9.994e-05,2]
[343601538,1732745436943,-500.0,9.994e-05,2]
[343601539,1732745436953,-500.0,9.994e-05,2]
[343601540,1732745436962,-500.0,9.994e-05,2]
[343601541,1732745436971,-500.0,9.994e-05,2]
[343601542,1732745436980,-500.0,9.994e-05,2]
[343601543,1732745436989,-500.0,9.994e-05,2]
[343601544,1732745436999,-500.0,9.994e-05,2]
[343601545,1732745437009,-593.35,9.994e-05,2]
[343601546,1732745437018,-500.0,9.994e-05,2]
[343601547,1732745437027,-500.0,9.994e-05,2]
[343601548,1732745437037,-493.40846423,9.994e-05,2]
[343601549,1732745437047,-500.0,9.994e-05,2]
[343601550,1732745437057,-500.0,9.994e-05,2]
[343601551,1732745437067,-500.0,9.994e-05,2]
[343601552,1732745437078,-500.0,9.994e-05,2]
[343601553,1732745437086,-500.0,9.994e-05,2]
[343601554,1732745437095,-630.82,9.994e-05,2]
[343601555,1732745437105,-500.0,9.994e-05,2]
[343601556,1732745437114,-532.92,9.994e-05,2]
[343601557,1732745437123,-500.0,9.994e-05,2]
[343601558,1732745437131,-500.0,9.994e-05,2]
[343601559,1732745437140,-500.0,9.994e-05,2]
[343601560,1732745437149,-647.07799479,9.994e-05,2]
[343601561,1732745437158,-500.0,9.994e-05,2]
[343601562,1732745437167,-500.0,9.994e-05,2]
[343601563,1732745437176,-500.0,9.994e-05,2]
[343601564,1732745437185,-597.91,9.994e-05,2]
[343601565,1732745437194,-500.0,9.994e-05,2]
[343601566,1732745437203,-500.0,9.994e-05,2]
[343601567,1732745437212,-500.0,9.994e-05,2]
[343601568,1732745437221,-500.0,9.994e-05,2]
[343601569,1732745437230,-500.0,9.994e-05,2]
[343601570,1732745437239,-500.0,9.994e-05,2]
[343601571,1732745437248,-500.0,9.994e-05,2]
[343601572,1732745437257,-500.0,9.994e-05,2]
[343601573,1732745437266,-500.0,9.994e-05,2]
[343601574,1732745437276,-500.0,9.994e-05,2]
[343601575,1732745437286,-500.0,9.994e-05,2]
[343601576,1732745437295,-556.46,9.994e-05,2]
[343601577,1732745437304,-500.0,9.994e-05,2]